bitfinex/quotes_SOLUSD_20250822
["timestamp","ask_amount","ask_price","bid_price","bid_amount"]
[1755849187871,15.64926725,184.42,184.4,0.03]
[1755849188180,13.87937615,184.41,184.4,0.03]
[1755849188358,13.87937615,184.41,184.39,0.03]
[1755849188547,5.45343094,184.4,184.39,0.03]
[1755849189269,10.87642443,184.4,184.39,0.03]
[1755849189446,14.5289387,184.4,184.39,0.03]
[1755849190073,18.945605,184.4,184.39,0.03]
[1755849190574,15.29309073,184.4,184.39,0.03]
[1755849191648,15.29309073,184.4,184.37,0.03]
[1755849191854,30.77343094,184.38,184.35,0.03]
[1755849192164,4.77343094,184.36,184.35,0.03]
[1755849192856,10.87760104,184.36,184.35,0.03]
[1755849193183,15.65103198,184.36,184.34,3875.91902068]
[1755849193396,10.22686188,184.35,184.34,3875.91902068]
[1755849193681,5.45343094,184.35,184.34,3875.91902068]
[1755849194853,10.87789527,184.35,184.34,3875.91902068]
[1755849195667,36.19789527,184.35,184.34,3875.91902068]
[1755849195873,4.77343094,184.35,184.34,3890.19461469]
[1755849196080,4.77343094,184.35,184.34,3932.33461469]
[1755849196281,5.42365085,184.38,184.35,13.59559401]
[1755849196759,4.77343094,184.36,184.35,13.59559401]
[1755849197079,4.77343094,184.36,184.35,14.28559401]
[1755849197282,4.77343094,184.36,184.35,13.59559401]
[1755849198869,4.77343094,184.36,184.35,14.28559401]
[1755849199053,4.77343094,184.36,184.35,13.59559401]
[1755849200178,26.0,184.37,184.35,14.28559401]
[1755849200364,4.77343094,184.36,184.35,55.73559401]
[1755849200959,10.19760104,184.36,184.35,55.73559401]
[1755849201675,31.42392955,184.37,184.35,55.73559401]
[1755849201876,4.77343094,184.36,184.35,55.73559401]
[1755849202281,4.77343094,184.36,184.35,55.76559401]
[1755849202902,5.47343094,184.36,184.35,0.03]
[1755849203186,10.89760104,184.36,184.35,0.03]
[1755849203489,6.1241701,184.36,184.35,0.03]
[1755849203661,10.89760104,184.36,184.35,0.03]
[1755849203997,10.19760104,184.36,184.35,0.03]
[1755849205172,10.19760104,184.36,184.35,13.62559401]
[1755849205387,10.19760104,184.36,184.35,55.76559401]
[1755849205688,5.4241701,184.36,184.35,55.76559401]
[1755849205885,10.19760104,184.36,184.35,55.76559401]
[1755849207590,10.19760104,184.36,184.35,13.62559401]
[1755849208187,5.4241701,184.36,184.35,13.62559401]
[1755849208382,10.19760104,184.36,184.35,13.62559401]
[1755849208987,10.89760104,184.36,184.35,55.74559401]
[1755849209470,10.89760104,184.36,184.35,13.62559401]
[1755849209879,36.89760104,184.36,184.35,0.03]
[1755849211494,36.19760104,184.36,184.35,14.31559401]
[1755849211787,5.42397358,184.37,184.35,56.41559401]
[1755849211991,4.77343094,184.36,184.35,56.41559401]
[1755849212698,4.77343094,184.36,184.35,55.72559401]
[1755849213583,5.47343094,184.36,184.35,42.13]
[1755849213774,10.89760104,184.36,184.35,42.13]
[1755849214797,5.4238759,184.37,184.35,42.13]
[1755849214977,5.4238759,184.37,184.36,13.59559401]
[1755849215186,10.19730684,184.37,184.36,13.59559401]
[1755849217475,10.89730684,184.37,184.35,42.13]
[1755849217677,4.77343094,184.36,184.35,55.72559401]
[1755849218803,10.19760104,184.36,184.35,55.72559401]
[1755849222192,5.4241701,184.36,184.35,56.41559401]
[1755849222397,0.06,184.37,184.36,13.59559401]
[1755849222608,0.06,184.37,184.36,14.28559401]
[1755849222781,0.06,184.37,184.36,13.59559401]
[1755849222981,0.06,184.37,184.36,14.28559401]
[1755849230013,0.06,184.37,184.36,19.34334809]
[1755849230899,0.06,184.37,184.36,99.14334809]
[1755849231825,0.06,184.37,184.36,94.36991715]
[1755849231986,0.06,184.37,184.36,99.14334809]
[1755849232188,0.06,184.37,184.36,141.34334809]
[1755849236014,0.06,184.37,184.36,61.54334809]
[1755849237217,0.06,184.37,184.36,66.96751819]
[1755849239096,0.06,184.37,184.36,62.19408725]
[1755849239298,0.06,184.37,184.36,56.76991715]
[1755849239515,0.06,184.37,184.36,66.95012911]
[1755849239897,0.06,184.37,184.36,72.37429921]
[1755849241198,0.06,184.39,184.38,13.59559401]
[1755849241518,0.06,184.39,184.38,86.79334809]
[1755849241720,0.06,184.39,184.38,87.48334809]
[1755849242134,0.06,184.39,184.38,82.70991715]
[1755849242316,0.06,184.39,184.38,87.48334809]
[1755849243537,0.06,184.39,184.38,92.90692982]
[1755849250832,0.06,184.45,184.43,0.28432314]
[1755849251003,0.76,184.45,184.44,60.81334809]
[1755849251204,0.76,184.45,184.44,140.31334809]
[1755849251807,5.53343094,184.45,184.44,13.59559401]
[1755849252025,10.95495438,184.45,184.44,55.77559401]
[1755849253022,6.18152344,184.45,184.44,55.77559401]
[1755849253225,0.76,184.45,184.44,55.77559401]
[1755849253412,0.76,184.45,184.44,56.05991715]
[1755849255010,0.06,184.45,184.44,141.02334809]
[1755849255810,0.06,184.45,184.44,140.33334809]
[1755849256122,0.06,184.45,184.44,145.75516548]
[1755849256327,0.06,184.45,184.44,141.02334809]
[1755849256631,0.06,184.45,184.44,146.44516548]
[1755849259430,0.06,184.45,184.44,145.75516548]
[1755849259634,0.06,184.45,184.44,146.44516548]
[1755849260021,0.1,184.47,184.46,13.59559401]
[1755849260210,0.1,184.47,184.46,140.35334809]
[1755849260406,0.1,184.47,184.46,141.04334809]
[1755849260612,0.06,184.49,184.48,118.89559401]
[1755849260844,0.06,184.49,184.48,166.13334809]
[1755849261136,0.06,184.49,184.48,166.82334809]
[1755849261535,0.06,184.49,184.48,172.24398989]
[1755849263335,7.014382,184.5,184.49,13.87991715]
[1755849263523,7.014382,184.5,184.49,19.34334809]
[1755849263840,7.014382,184.5,184.49,13.87991715]
[1755849264139,7.014382,184.5,184.49,66.25369607]
[1755849264342,7.014382,184.5,184.49,56.74991715]
[1755849264545,7.014382,184.5,184.49,61.52334809]
[1755849264917,7.014382,184.5,184.49,60.83334809]
[1755849265140,7.014382,184.5,184.49,18.65334809]
[1755849265436,7.014382,184.5,184.49,194.85334809]
[1755849265621,7.014382,184.5,184.49,200.96369607]
[1755849266040,7.014382,184.5,184.49,196.19026513]
[1755849266246,7.014382,184.5,184.49,200.96369607]
[1755849266739,7.014382,184.5,184.49,194.85334809]
[1755849266919,7.014382,184.5,184.49,200.96369607]
[1755849268314,7.074382,184.5,184.49,200.96369607]
[1755849268514,7.074382,184.5,184.49,206.38457762]
[1755849269331,7.074382,184.5,184.49,201.61114668]
[1755849269527,7.074382,184.5,184.49,206.38457762]
[1755849271342,0.06,184.54,184.53,72.225618]
[1755849271649,0.74,184.54,184.53,133.13896609]
[1755849272031,0.06,184.54,184.53,133.13896609]
[1755849272218,0.74,184.54,184.53,133.13896609]
[1755849272425,0.74,184.54,184.53,128.36553515]
[1755849272747,0.74,184.54,184.53,133.13896609]
[1755849273361,5.51343094,184.54,184.53,85.82121201]
[1755849273644,10.93231031,184.54,184.53,128.06121201]
[1755849274926,0.74,184.54,184.53,128.20337358]
[1755849275425,0.74,184.54,184.53,128.34553515]
[1755849275824,0.06,184.54,184.53,133.11896609]
[1755849276124,0.06,184.54,184.53,128.34553515]
[1755849276333,0.06,184.54,184.53,133.11896609]
[1755849278029,0.06,184.54,184.53,60.89334809]
[1755849278223,0.06,184.54,184.53,56.11991715]
[1755849278429,0.06,184.54,184.53,60.89334809]
[1755849278640,0.74,184.54,184.53,56.11991715]
[1755849279733,0.74,184.54,184.53,60.89334809]
[1755849280761,0.74,184.54,184.53,56.11991715]
[1755849281052,0.06,184.54,184.53,133.11896609]
[1755849282163,0.74,184.54,184.53,128.34553515]
[1755849282458,0.74,184.54,184.53,128.20121201]
[1755849282644,0.06,184.54,184.53,128.20121201]
[1755849282953,0.06,184.54,184.53,128.48553515]
[1755849283841,0.74,184.54,184.53,55.97559401]
[1755849284238,0.06,184.54,184.53,56.11775558]
[1755849284441,0.06,184.54,184.53,56.25991715]
[1755849285667,0.74,184.54,184.53,56.25991715]
[1755849286029,0.06,184.54,184.53,138.67813912]
[1755849286450,0.06,184.54,184.53,139.36813912]
[1755849286829,0.06,184.54,184.53,138.67813912]
[1755849287757,0.06,184.54,184.53,139.37813912]
[1755849288651,0.06,184.54,184.53,134.60470818]
[1755849288970,0.06,184.54,184.53,139.37813912]
[1755849289132,0.06,184.58,184.54,13.87991715]
[1755849289335,0.06,184.58,184.57,18.65334809]
[1755849289538,0.06,184.58,184.57,61.11334809]
[1755849291162,0.06,184.58,184.57,56.33991715]
[1755849291349,0.06,184.58,184.57,66.53134668]
[1755849291753,0.06,184.58,184.57,139.45696468]
[1755849292151,0.06,184.58,184.57,134.68353374]
[1755849292351,0.06,184.58,184.57,138.75696468]
[1755849293556,0.77,184.58,184.57,133.19680452]
[1755849293745,0.06,184.58,184.57,133.19680452]
[1755849294142,0.06,184.58,184.57,133.33896609]
[1755849294559,0.77,184.58,184.57,13.59559401]
[1755849294742,0.77,184.58,184.57,60.76902495]
[1755849294943,0.06,184.58,184.57,66.47134668]
[1755849296259,0.06,184.58,184.57,67.17134668]
[1755849296641,0.06,184.58,184.57,56.27991715]
[1755849296958,0.06,184.58,184.57,66.47134668]
[1755849298264,0.77,184.58,184.57,18.65334809]
[1755849298471,0.77,184.58,184.57,61.09334809]
[1755849299842,0.06,184.58,184.57,61.09334809]
[1755849300359,0.06,184.58,184.57,66.51134668]
[1755849300963,0.77,184.6,184.59,13.87991715]
[1755849301158,0.06,184.6,184.59,128.46553515]
[1755849301363,0.06,184.6,184.59,86.04553515]
[1755849301562,0.06,184.6,184.59,128.44553515]
[1755849301765,0.77,184.6,184.59,128.44553515]
[1755849305367,0.77,184.6,184.59,133.86294671]
[1755849306162,0.06,184.6,184.59,133.86294671]
[1755849309375,5.54343094,184.6,184.59,133.86294671]
[1755849310084,0.06,184.6,184.59,133.86294671]
[1755849311860,0.06,184.6,184.59,134.56294671]
[1755849312771,0.06,184.62,184.61,13.87991715]
[1755849312957,0.06,184.62,184.61,56.21991715]
[1755849313674,4.83343094,184.62,184.61,56.21991715]
[1755849314069,0.06,184.62,184.61,56.21991715]
[1755849314266,4.83343094,184.62,184.61,56.21991715]
[1755849315076,0.06,184.62,184.61,62.3367418]
[1755849315275,0.06,184.62,184.61,61.6367418]
[1755849316180,0.06,184.62,184.61,62.3367418]
[1755849316386,0.06,184.62,184.61,134.4423598]
[1755849316695,0.06,184.62,184.61,139.21579074]
[1755849317691,0.06,184.62,184.61,134.4423598]
[1755849318482,0.06,184.62,184.61,133.7423598]
[1755849319566,0.06,184.62,184.61,91.4023598]
[1755849319760,0.06,184.62,184.61,133.7023598]
[1755849320381,0.06,184.62,184.61,134.3723598]
[1755849320578,0.06,184.62,184.61,133.7023598]
[1755849321197,0.06,184.62,184.61,91.4023598]
[1755849321374,0.06,184.62,184.61,134.3323598]
[1755849322774,0.06,184.62,184.61,133.6623598]
[1755849323376,0.06,184.62,184.61,139.10579074]
[1755849324597,0.06,184.62,184.61,134.3323598]
[1755849324806,0.06,184.62,184.61,139.10579074]
[1755849324975,0.06,184.62,184.61,134.3323598]
[1755849325271,0.06,184.62,184.61,139.10579074]
[1755849327999,0.06,184.62,184.61,144.56708193]
[1755849328218,0.06,184.62,184.61,96.57932785]
[1755849328380,0.75,184.62,184.61,96.57932785]
[1755849328567,0.06,184.62,184.61,138.85932785]
[1755849328988,0.06,184.62,184.61,139.14365099]
[1755849330881,0.06,184.62,184.61,144.58708193]
[1755849331272,0.06,184.62,184.61,139.81365099]
[1755849331466,0.06,184.62,184.61,143.91708193]
[1755849331791,0.06,184.62,184.61,144.58708193]
[1755849333482,0.2,184.63,184.62,91.3420664]
[1755849335407,0.89,184.63,184.62,85.92553515]
[1755849335609,0.89,184.63,184.62,128.24553515]
[1755849336312,5.66343094,184.63,184.62,127.96121201]
[1755849336788,5.66343094,184.63,184.62,85.92553515]
[1755849336988,5.66343094,184.63,184.62,128.12337358]
[1755849337209,5.66343094,184.63,184.62,128.26553515]
[1755849337913,0.89,184.63,184.62,128.26553515]
[1755849338105,0.2,184.63,184.62,128.26553515]
[1755849339994,0.2,184.63,184.62,138.5154974]
[1755849340200,0.2,184.63,184.62,139.1854974]
[1755849340507,0.2,184.63,184.62,133.09896615]
[1755849341109,0.2,184.63,184.62,138.5154974]
[1755849341502,0.2,184.63,184.62,139.1854974]
[1755849341692,0.2,184.63,184.62,143.95892834]
[1755849343228,0.2,184.63,184.62,138.5154974]
[1755849345391,0.06,184.64,184.63,85.72553515]
[1755849345611,4.83343094,184.64,184.63,128.06553515]
[1755849345999,5.52343094,184.64,184.63,128.06553515]
[1755849346195,5.52343094,184.64,184.63,85.72553515]
[1755849346400,5.52343094,184.64,184.63,128.10553515]
[1755849346593,0.75,184.64,184.63,128.10553515]
[1755849346818,5.52343094,184.64,184.63,128.10553515]
[1755849347512,0.75,184.64,184.63,128.10553515]
[1755849347705,5.52343094,184.64,184.63,128.10553515]
[1755849350408,5.49343094,184.63,184.62,55.97559401]
[1755849351112,10.90966882,184.63,184.62,55.97559401]
[1755849358210,10.90966882,184.63,184.62,42.38]
[1755849358914,10.90966882,184.63,184.61,42.33]
[1755849359115,10.90996219,184.62,184.61,42.33]
[1755849360133,10.90996219,184.62,184.61,0.03]
[1755849360134,15.68339313,184.62,184.61,0.03]
[1755849360329,10.90996219,184.62,184.61,0.03]
[1755849361403,15.68339313,184.62,184.61,0.03]
[1755849361624,19.3365374,184.62,184.6,0.03]
[1755849361931,5.49343094,184.61,184.6,0.03]
[1755849362508,0.72,184.61,184.6,56.06559401]
[1755849362711,5.49343094,184.61,184.6,56.06559401]
[1755849363636,4.77343094,184.61,184.6,56.06559401]
[1755849364822,0.06,184.64,184.61,13.59559401]
[1755849365006,4.77343094,184.62,184.61,0.96432314]
[1755849365204,0.06,184.64,184.62,0.28432314]
[1755849365432,4.77343094,184.63,184.62,0.28432314]
[1755849365816,0.06,184.64,184.62,0.28432314]
[1755849366020,0.06,184.64,184.63,56.13559401]
[1755849366939,0.06,184.64,184.63,57.09991715]
[1755849367121,4.83343094,184.64,184.63,57.09991715]
[1755849368116,0.06,184.64,184.63,57.09991715]
[1755849368317,4.83343094,184.64,184.63,57.09991715]
[1755849368514,4.83343094,184.64,184.63,73.38346815]
[1755849370019,4.83343094,184.64,184.63,72.70346815]
[1755849370222,4.83343094,184.64,184.63,56.41991715]
[1755849370422,4.83343094,184.64,184.63,62.55503215]
[1755849371120,10.96937548,184.64,184.63,56.07559401]
[1755849372545,5.55343094,184.64,184.63,56.07559401]
[1755849374248,4.83343094,184.64,184.63,56.07559401]
[1755849377215,4.83343094,184.64,184.63,56.75559401]
[1755849377633,4.83343094,184.64,184.63,56.07559401]
[1755849378022,4.83343094,184.64,184.63,56.35991715]
[1755849378226,4.83343094,184.64,184.63,57.03991715]
[1755849378529,4.83343094,184.64,184.63,61.87334815]
[1755849378731,0.06,184.64,184.63,61.87334815]
[1755849378938,4.83343094,184.64,184.63,61.87334815]
[1755849380242,4.83343094,184.64,184.63,61.19334815]
[1755849380942,4.83343094,184.64,184.63,128.20553515]
[1755849382038,4.83343094,184.64,184.63,133.03896615]
[1755849382842,5.53343094,184.64,184.63,128.20553515]
[1755849383148,4.83343094,184.64,184.63,128.20553515]
[1755849384240,5.53343094,184.64,184.63,128.20553515]
[1755849385036,4.83343094,184.64,184.63,128.20553515]
[1755849386744,5.53343094,184.64,184.63,128.20553515]
[1755849387949,0.76,184.64,184.63,128.20553515]
[1755849388153,4.83343094,184.64,184.63,128.20553515]
[1755849391042,4.83343094,184.64,184.63,128.88553515]
[1755849391642,0.06,184.64,184.63,62.45615503]
[1755849391961,0.06,184.64,184.63,65.52647615]
[1755849392335,0.06,184.64,184.63,70.94271403]
[1755849394838,0.06,184.64,184.63,75.71614497]
[1755849395661,0.06,184.64,184.63,147.56176297]
[1755849396171,0.06,184.64,184.63,142.78833203]
[1755849396488,0.06,184.64,184.63,147.56176297]
[1755849399576,0.06,184.64,184.63,146.88176297]
[1755849401059,0.06,184.64,184.63,142.10833203]
[1755849401257,0.06,184.64,184.63,146.88176297]
[1755849403758,0.06,184.64,184.63,94.21209415]
[1755849403959,0.06,184.64,184.63,141.20552509]
[1755849404778,0.06,184.64,184.63,136.43209415]
[1755849404982,0.06,184.64,184.63,141.20552509]
[1755849405483,0.06,184.64,184.63,136.43209415]
[1755849405688,0.76,184.64,184.63,136.14777101]
[1755849406075,0.06,184.64,184.63,141.20552509]
[1755849406389,0.76,184.64,184.63,13.59559401]
[1755849406560,0.76,184.64,184.63,55.85559401]
[1755849407295,0.06,184.64,184.63,55.85559401]
[1755849407501,0.78,184.64,184.63,55.85559401]
[1755849407658,6.19594454,184.64,184.63,13.59559401]
[1755849407865,10.96937548,184.64,184.63,55.99559401]
[1755849408294,0.78,184.64,184.63,55.99559401]
[1755849408492,5.55343094,184.64,184.63,55.99559401]
[1755849408672,0.78,184.64,184.63,55.99559401]
[1755849408870,5.55343094,184.64,184.63,55.99559401]
[1755849409193,10.96937548,184.64,184.63,55.99559401]
[1755849409569,0.78,184.64,184.63,55.99559401]
[1755849409902,5.55343094,184.64,184.63,55.99559401]
[1755849410071,10.96937548,184.64,184.63,55.99559401]
[1755849410398,6.19594454,184.64,184.63,55.99559401]
[1755849410570,10.96937548,184.64,184.63,55.99559401]
[1755849410772,10.96937548,184.64,184.63,42.4]
[1755849410994,10.96937548,184.64,184.61,0.03]
[1755849410995,26.0,184.62,184.61,0.03]
[1755849411182,34.42832364,184.62,184.61,0.03]
[1755849411494,39.20842698,184.62,184.61,0.03]
[1755849412480,44.62495823,184.62,184.61,0.03]
[1755849413000,40.56485489,184.62,184.61,0.03]
[1755849413200,44.62295709,184.62,184.61,0.03]
[1755849413500,35.54686188,184.61,184.6,0.03]
[1755849413686,39.92175458,184.61,184.6,0.03]
[1755849414002,35.14832364,184.61,184.6,0.03]
[1755849414705,40.56514829,184.61,184.6,0.03]
[1755849415999,35.79171735,184.61,184.6,0.03]
[1755849416291,40.56514829,184.61,184.6,0.03]
[1755849417592,36.91025559,184.61,184.6,0.03]
[1755849418797,32.13682465,184.61,184.6,0.03]
[1755849418977,36.91025559,184.61,184.6,0.03]
[1755849419899,32.13682465,184.61,184.6,0.03]
[1755849420075,36.91025559,184.61,184.6,0.03]
[1755849420490,32.13682465,184.61,184.6,0.03]
[1755849420686,36.91025559,184.61,184.6,0.03]
[1755849421191,5.41653104,184.63,184.6,0.03]
[1755849421384,30.77343094,184.61,184.6,0.03]
[1755849422175,26.0,184.61,184.6,0.03]
[1755849422372,30.77343094,184.61,184.6,0.03]
[1755849422700,4.77343094,184.62,184.6,14.32559401]
[1755849422993,4.77343094,184.63,184.62,13.59559401]
[1755849423185,4.83343094,184.64,184.62,14.29559401]
[1755849423995,10.24943464,184.64,184.62,14.29559401]
[1755849424174,4.77343094,184.63,184.6,14.60991715]
[1755849424589,4.77343094,184.63,184.62,13.59559401]
[1755849425377,10.18966882,184.63,184.62,13.59559401]
[1755849425906,4.77343094,184.63,184.62,13.59559401]
[1755849428184,0.06,184.64,184.62,14.29559401]
[1755849428391,4.83343094,184.64,184.62,56.69559401]
[1755849430180,4.77343094,184.63,184.62,55.99559401]
[1755849431186,4.77343094,184.63,184.62,61.47155901]
[1755849431387,5.47596458,184.64,184.62,61.47155901]
[1755849431593,4.77343094,184.63,184.62,61.47155901]
[1755849433015,5.47596458,184.64,184.62,61.47155901]
[1755849433016,10.24939552,184.64,184.62,61.47155901]
[1755849433614,5.49343094,184.63,184.62,61.47155901]
[1755849433905,5.49343094,184.63,184.61,122.16]
[1755849434106,5.49343094,184.62,184.61,135.75559401]
[1755849434799,5.49343094,184.62,184.61,141.24902501]
[1755849435307,10.90996219,184.62,184.61,141.24902501]
[1755849435507,5.41628135,184.63,184.61,141.24902501]
[1755849435709,4.77343094,184.62,184.61,141.24902501]
[1755849436009,5.49343094,184.62,184.61,141.24902501]
[1755849436684,5.41628135,184.63,184.61,141.24902501]
[1755849436990,4.77343094,184.62,184.61,61.44902501]
[1755849437206,5.43343094,184.62,184.61,61.44902501]
[1755849437613,4.77343094,184.62,184.61,62.13902501]
[1755849438193,4.77343094,184.62,184.61,61.44902501]
[1755849438510,4.83343094,184.62,184.61,61.44902501]
[1755849440825,10.24996219,184.62,184.61,61.44902501]
[1755849442403,10.90996219,184.62,184.61,61.44902501]
[1755849444318,10.24996219,184.62,184.61,61.44902501]
[1755849445008,10.90996219,184.62,184.61,61.44902501]
[1755849446804,10.90996219,184.62,184.61,55.95559401]
[1755849447624,10.90996219,184.62,184.6,10.939963]
[1755849447625,10.90996219,184.62,184.6,0.03]
[1755849447929,5.43343094,184.61,184.6,0.03]
[1755849448520,10.85025559,184.61,184.6,0.03]
[1755849450008,6.07682465,184.61,184.6,0.03]
[1755849450207,10.85025559,184.61,184.6,0.03]
[1755849450852,10.85025559,184.61,184.59,0.03]
[1755849450853,15.62368653,184.61,184.59,0.03]
[1755849451027,13.85076016,184.6,184.59,0.03]
[1755849451328,26.0,184.59,184.58,0.03]
[1755849451526,39.85076016,184.59,184.58,0.03]
[1755849452304,43.9080163,184.59,184.58,0.03]
[1755849452525,49.32542786,184.59,184.58,0.03]
[1755849454812,49.32542786,184.59,184.57,0.03]
[1755849455010,13.13458536,184.58,184.57,0.03]
[1755849455513,9.07732922,184.58,184.57,0.03]
[1755849455718,13.13122817,184.58,184.57,0.03]
[1755849456123,9.07732922,184.58,184.57,0.03]
[1755849456934,14.49503428,184.58,184.57,0.03]
[1755849457232,14.49503428,184.58,184.56,0.03]
[1755849457233,22.91258034,184.58,184.56,0.03]
[1755849457533,26.0,184.55,184.54,0.03]
[1755849457734,34.41732922,184.55,184.54,0.03]
[1755849458029,35.07732922,184.55,184.54,0.03]
[1755849458735,35.07732922,184.55,184.5,0.03]
[1755849458941,4.77343094,184.51,184.5,0.72]
[1755849459128,6.07887937,184.54,184.5,0.03]
[1755849459129,19.6260778,184.54,184.5,0.03]
[1755849459435,4.77343094,184.51,184.5,0.03]
[1755849460238,10.19319138,184.51,184.5,0.03]
[1755849460540,5.41976044,184.51,184.5,0.03]
[1755849460709,10.19319138,184.51,184.5,0.03]
[1755849461029,10.85319138,184.51,184.5,0.03]
[1755849461532,15.62662232,184.51,184.5,0.03]
[1755849465723,17.80012132,184.51,184.5,0.03]
[1755849466321,17.80012132,184.51,184.48,0.03]
[1755849466522,4.77343094,184.49,184.48,0.03]
[1755849466730,26.0,184.49,184.48,0.03]
[1755849466947,5.43343094,184.49,184.48,0.03]
[1755849467253,36.85377892,184.49,184.48,0.03]
[1755849469140,32.08034798,184.49,184.48,0.03]
[1755849469348,36.85377892,184.49,184.48,0.03]
[1755849470051,39.02763292,184.49,184.48,0.03]
[1755849476257,38.36763292,184.49,184.48,0.03]
[1755849476436,39.05763292,184.49,184.48,0.03]
[1755849476765,34.28420198,184.49,184.48,0.03]
[1755849477064,39.05763292,184.49,184.48,0.03]
[1755849478960,38.36763292,184.49,184.48,0.03]
[1755849479456,39.05763292,184.49,184.48,0.03]
[1755849480030,38.36763292,184.49,184.48,0.03]
[1755849480452,36.19377892,184.49,184.48,0.74]
[1755849480638,36.19377892,184.49,184.48,0.03]
[1755849481057,26.0,184.47,184.46,0.03]
[1755849481247,26.0,184.45,184.44,0.2]
[1755849481435,30.77343094,184.45,184.44,0.2]
[1755849481637,26.0,184.45,184.44,0.2]
[1755849481832,30.77343094,184.45,184.44,0.2]
[1755849482261,30.77343094,184.45,184.44,0.91]
[1755849483069,36.19495438,184.45,184.44,0.91]
[1755849483635,30.77343094,184.45,184.44,14.50559401]
[1755849483858,4.77343094,184.45,184.44,14.50559401]
[1755849486551,26.0,184.47,184.45,13.59559401]
[1755849486753,5.42000712,184.51,184.46,14.30559401]
[1755849486933,5.42000712,184.51,184.47,0.71]
[1755849487132,4.77343094,184.49,184.47,0.99432314]
[1755849487361,4.77343094,184.49,184.48,13.59559401]
[1755849487667,4.77343094,184.49,184.48,14.30559401]
[1755849488264,4.77343094,184.5,184.48,14.30559401]
[1755849488436,5.4195541,184.52,184.48,14.58991715]
[1755849488636,4.77343094,184.49,184.48,14.58991715]
[1755849488933,6.1095541,184.52,184.48,14.58991715]
[1755849489138,4.77343094,184.49,184.48,13.87991715]
[1755849489362,4.77343094,184.49,184.48,14.58991715]
[1755849490162,4.77343094,184.5,184.48,14.58991715]
[1755849490465,4.77343094,184.5,184.49,14.30559401]
[1755849490844,5.41952824,184.52,184.5,13.59559401]
[1755849491050,4.77343094,184.51,184.5,14.30559401]
[1755849491466,10.19319138,184.51,184.5,14.30559401]
[1755849491644,4.77343094,184.51,184.5,14.30559401]
[1755849491851,10.19319138,184.51,184.5,13.59559401]
[1755849492444,10.88319138,184.51,184.5,13.59559401]
[1755849492641,5.41976044,184.51,184.5,13.59559401]
[1755849492852,10.88319138,184.51,184.5,13.59559401]
[1755849493055,10.88319138,184.51,184.47,17.00859]
[1755849493249,4.77343094,184.48,184.47,14.58991715]
[1755849493567,4.77343094,184.48,184.47,94.38991715]
[1755849494241,4.77343094,184.48,184.47,99.81034815]
[1755849494647,4.77343094,184.48,184.47,99.52602501]
[1755849494853,4.77343094,184.48,184.47,94.10559401]
[1755849495881,5.4200542,184.5,184.48,13.59559401]
[1755849496066,4.77343094,184.49,184.48,13.59559401]
[1755849496270,4.77343094,184.49,184.48,14.30559401]
[1755849496647,4.77343094,184.49,184.48,13.59559401]
[1755849497662,4.77343094,184.49,184.48,14.24559401]
[1755849498464,10.19377892,184.49,184.48,14.24559401]
[1755849498766,10.88377892,184.49,184.47,79.8]
[1755849498972,5.46343094,184.48,184.47,79.8]
[1755849499270,5.46343094,184.48,184.45,13.59559401]
[1755849499575,4.77343094,184.46,184.45,13.59559401]
[1755849499954,10.19466047,184.46,184.45,13.59559401]
[1755849504382,10.19466047,184.46,184.45,13.62559401]
[1755849505262,4.77343094,184.46,184.45,13.62559401]
[1755849505848,4.77343094,184.46,184.45,14.55991715]
[1755849506253,4.77343094,184.46,184.45,19.98104415]
[1755849506879,4.77343094,184.47,184.45,19.98104415]
[1755849507381,5.42070443,184.48,184.46,14.24559401]
[1755849507581,5.42070443,184.48,184.47,13.59559401]
[1755849507960,26.0,184.48,184.47,13.59559401]
[1755849508163,29.64685167,184.48,184.47,13.59559401]
[1755849508780,34.42028261,184.48,184.47,13.59559401]
[1755849509168,34.42028261,184.48,184.47,14.24559401]
[1755849509563,34.42028261,184.48,184.47,13.59559401]
[1755849509884,30.77343094,184.48,184.47,13.59559401]
[1755849510058,34.42963565,184.48,184.47,13.59559401]
[1755849510458,39.85027745,184.48,184.47,13.59559401]